{"text_format":"3","workbook":"xlsx","n_sheets":4,"sheets":["Marion","Jonesboro","Little Rock","Comparison"],"not_rendered":{"charts":7},"read":"whole","date_system":"1900"}

{"sheet":"Marion","index":0,"n_rows":9,"n_cols":8,"rows_kept":9,"merged":[[2,1,3,7]]}
[]
[]
[null,"Average Temperature for One Week in Marion"]
[]
[]
[null,null,"Monday","Tuesday","Wednesday","Thursday","Friday","Average"]
[null,"High Temp",{"$nulls":5},{"$f":"(C7+D7+E7+F7+G7)/5","v":0}]
[null,"Low Temp",{"$nulls":5},{"$f":"(C8+D8+E8+F8+G8)/5","v":0}]
[null,"Average",{"$f":"AVERAGE(C7:C8)","v":{"$error":"#DIV/0!"}},{"$error":"#DIV/0!"},{"$error":"#DIV/0!"},{"$error":"#DIV/0!"},{"$error":"#DIV/0!"},0]

{"sheet":"Jonesboro","index":1,"n_rows":9,"n_cols":8,"rows_kept":9,"merged":[[2,1,3,7]]}
[]
[]
[null,"Average Temperature for One Week in Jonesboro"]
[]
[]
[null,null,"Monday","Tuesday","Wednesday","Thursday","Friday","Average"]
[null,"High Temp",{"$nulls":5},{"$f":"(C7+D7+E7+F7+G7)/5","v":0}]
[null,"Low Temp",{"$nulls":5},{"$f":"(C8+D8+E8+F8+G8)/5","v":0}]
[null,"Average",{"$f":"AVERAGE(C7:C8)","v":{"$error":"#DIV/0!"}},{"$error":"#DIV/0!"},{"$error":"#DIV/0!"},{"$error":"#DIV/0!"},{"$error":"#DIV/0!"},0]

{"sheet":"Little Rock","index":2,"n_rows":9,"n_cols":8,"rows_kept":9,"merged":[[2,1,3,7]]}
[]
[]
[null,"Average Temperature for One Week in Little Rock"]
[]
[]
[null,null,"Monday","Tuesday","Wednesday","Thursday","Friday","Average"]
[null,"High Temp",{"$nulls":5},{"$f":"(C7+D7+E7+F7+G7)/5","v":0}]
[null,"Low Temp",{"$nulls":5},{"$f":"(C8+D8+E8+F8+G8)/5","v":0}]
[null,"Average",{"$f":"AVERAGE(C7:C8)","v":{"$error":"#DIV/0!"}},{"$error":"#DIV/0!"},{"$error":"#DIV/0!"},{"$error":"#DIV/0!"},{"$error":"#DIV/0!"},0]

{"sheet":"Comparison","index":3,"n_rows":9,"n_cols":9,"rows_kept":9,"merged":[[2,1,3,8],[4,1,4,7],[5,2,5,3],[5,4,5,5],[5,6,5,7],[6,2,6,3],[6,4,6,5],[6,6,6,7],[7,2,7,3],[7,4,7,5],[7,6,7,7],[8,2,8,3],[8,4,8,5],[8,6,8,7]]}
[]
[]
[null,"Temperature Comparison of Marion, Jonesboro, and Little Rock in One Week"]
[]
[]
[null,null,"Marion",null,"Jonesboro",null,"Little Rock",null,"Average"]
[null,"High Temp",{"$f":"(Marion!C7+Marion!D7+Marion!E7+Marion!F7+Marion!G7)","v":0},null,{"$f":"Jonesboro!$C$7+Jonesboro!$D$7+Jonesboro!$E$7+Jonesboro!$F$7+Jonesboro!$G$7","v":0},null,{"$f":"'Little Rock'!C7+'Little Rock'!D7+'Little Rock'!E7+'Little Rock'!F7+'Little Rock'!G7","v":0},null,{"$f":"AVERAGE(C7:H7)","v":0}]
[null,"Low Temp",{"$f":"Marion!C8+Marion!D8+Marion!E8+Marion!F8+Marion!G8","v":0},null,{"$f":"Jonesboro!$C$8+Jonesboro!$D$8+Jonesboro!$E$8+Jonesboro!$F$8+Jonesboro!$G$8","v":0},null,{"$f":"'Little Rock'!C8+'Little Rock'!D8+'Little Rock'!E8+'Little Rock'!F8+'Little Rock'!G8","v":0},null,{"$f":"AVERAGE(C8:H8)","v":0}]
[null,"Average",{"$f":"AVERAGE(C7:D8)","v":0},null,{"$f":"AVERAGE(E7:F8)","v":0},null,{"$f":"AVERAGE(G7:H8)","v":0},null,{"$f":"AVERAGE(I7:I8)","v":0}]